{"text_format":"3","workbook":"xlsx","n_sheets":7,"sheets":["Lunes","Martes","Miércoles","Jueves","Viernes","Sábado","Domingo"],"not_rendered":{"defined_names":21},"read":"whole","date_system":"1900"}

{"sheet":"Lunes","index":0,"n_rows":10,"n_cols":13,"rows_kept":10,"merged":[[1,1,1,4],[1,8,1,9],[1,10,1,12],[2,1,2,4],[2,8,2,9],[2,10,2,12]]}
[]
[null,"PROGRAMACIÓN DE TURNOS",{"$nulls":6},"Para la semana de: ",null,"Fecha"]
[null,"Lunes",{"$nulls":6},"Nombre del departamento: ",null,"Nombre"]
[]
[null,"Empleado","7:00 a. m.","8:00 a. m.","9:00 a. m.","10:00 a. m.","11:00 a. m.","12:00 a. m.","1:00 p. m.","2:00 p. m.","3:00 p. m.","¿Enfermedad?","Diferencia"]
[null,"Nombre 1","Administrador","Administrador","Administrador","Administrador","Administrador","Administrador","Administrador","Administrador","Administrador",null,{"$f":"COUNTIF(Lunes[[#This Row],[7:00 a. m.]:[3:00 p. m.]],\"*\")","v":9}]
[null,"Nombre 2",null,"cajero","cajero","cajero","cajero",{"$nulls":5},{"$f":"COUNTIF(Lunes[[#This Row],[7:00 a. m.]:[3:00 p. m.]],\"*\")","v":4}]
[null,"Nombre 3",null,"recepción","recepción","recepción","recepción","recepción","recepción","recepción",null,null,{"$f":"COUNTIF(Lunes[[#This Row],[7:00 a. m.]:[3:00 p. m.]],\"*\")","v":7}]
[null,"Nombre 4",null,"recepción","recepción","recepción","recepción","recepción","recepción","recepción",null,null,{"$f":"COUNTIF(Lunes[[#This Row],[7:00 a. m.]:[3:00 p. m.]],\"*\")","v":7}]
[null,"Nombre 5",{"$nulls":9},"Enfermedad",{"$f":"COUNTIF(Lunes[[#This Row],[7:00 a. m.]:[3:00 p. m.]],\"*\")","v":0}]

{"sheet":"Martes","index":1,"n_rows":10,"n_cols":13,"rows_kept":10,"merged":[[1,1,1,4],[1,8,1,9],[1,10,1,12],[2,1,2,4],[2,8,2,9],[2,10,2,12]]}
[]
[null,"PROGRAMACIÓN DE TURNOS",{"$nulls":6},"Para la semana de: ",null,"Fecha"]
[null,"Martes",{"$nulls":6},"Nombre del departamento: ",null,"Nombre"]
[]
[null,"Empleado","7:00 a. m.","8:00 a. m.","9:00 a. m.","10:00 a. m.","11:00 a. m.","12:00 a. m.","1:00 p. m.","2:00 p. m.","3:00 p. m.","¿Enfermedad?","Diferencia"]
[null,"Nombre 1","Administrador","Administrador","Administrador","Administrador","Administrador","Administrador","Administrador","Administrador","Administrador",null,{"$f":"COUNTIF(Martes[[#This Row],[7:00 a. m.]:[3:00 p. m.]],\"*\")","v":9}]
[null,"Nombre 2",null,"cajero","cajero","cajero","cajero",{"$nulls":5},{"$f":"COUNTIF(Martes[[#This Row],[7:00 a. m.]:[3:00 p. m.]],\"*\")","v":4}]
[null,"Nombre 3",null,"recepción","recepción","recepción","recepción","recepción","recepción","recepción",null,null,{"$f":"COUNTIF(Martes[[#This Row],[7:00 a. m.]:[3:00 p. m.]],\"*\")","v":7}]
[null,"Nombre 4",null,"recepción","recepción","recepción","recepción","recepción","recepción","recepción",null,null,{"$f":"COUNTIF(Martes[[#This Row],[7:00 a. m.]:[3:00 p. m.]],\"*\")","v":7}]
[null,"Nombre 5",{"$nulls":9},"Enfermedad",{"$f":"COUNTIF(Martes[[#This Row],[7:00 a. m.]:[3:00 p. m.]],\"*\")","v":0}]

{"sheet":"Miércoles","index":2,"n_rows":10,"n_cols":13,"rows_kept":10,"merged":[[1,1,1,4],[1,8,1,9],[1,10,1,12],[2,1,2,4],[2,8,2,9],[2,10,2,12]]}
[]
[null,"PROGRAMACIÓN DE TURNOS",{"$nulls":6},"Para la semana de: ",null,"Fecha"]
[null,"Miércoles",{"$nulls":6},"Nombre del departamento: ",null,"Nombre"]
[]
[null,"Empleado","7:00 a. m.","8:00 a. m.","9:00 a. m.","10:00 a. m.","11:00 a. m.","12:00 a. m.","1:00 p. m.","2:00 p. m.","3:00 p. m.","¿Enfermedad?","Diferencia"]
[null,"Nombre 1","Administrador","Administrador","Administrador","Administrador","Administrador","Administrador","Administrador","Administrador","Administrador",null,{"$f":"COUNTIF(Miercoles[[#This Row],[7:00 a. m.]:[3:00 p. m.]],\"*\")","v":9}]
[null,"Nombre 2",null,"cajero","cajero","cajero","cajero",{"$nulls":5},{"$f":"COUNTIF(Miercoles[[#This Row],[7:00 a. m.]:[3:00 p. m.]],\"*\")","v":4}]
[null,"Nombre 3",null,"recepción","recepción","recepción","recepción","recepción","recepción","recepción",null,null,{"$f":"COUNTIF(Miercoles[[#This Row],[7:00 a. m.]:[3:00 p. m.]],\"*\")","v":7}]
[null,"Nombre 4",null,"recepción","recepción","recepción","recepción","recepción","recepción","recepción",null,null,{"$f":"COUNTIF(Miercoles[[#This Row],[7:00 a. m.]:[3:00 p. m.]],\"*\")","v":7}]
[null,"Nombre 5",{"$nulls":9},"Enfermedad",{"$f":"COUNTIF(Miercoles[[#This Row],[7:00 a. m.]:[3:00 p. m.]],\"*\")","v":0}]

{"sheet":"Jueves","index":3,"n_rows":10,"n_cols":13,"rows_kept":10,"merged":[[1,1,1,4],[1,8,1,9],[1,10,1,12],[2,1,2,4],[2,8,2,9],[2,10,2,12]]}
[]
[null,"PROGRAMACIÓN DE TURNOS",{"$nulls":6},"Para la semana de: ",null,"Fecha"]
[null,"Jueves",{"$nulls":6},"Nombre del departamento: ",null,"Nombre"]
[]
[null,"Empleado","7:00 a. m.","8:00 a. m.","9:00 a. m.","10:00 a. m.","11:00 a. m.","12:00 a. m.","1:00 p. m.","2:00 p. m.","3:00 p. m.","¿Enfermedad?","Diferencia"]
[null,"Nombre 1","Administrador","Administrador","Administrador","Administrador","Administrador","Administrador","Administrador","Administrador","Administrador",null,{"$f":"COUNTIF(Jueves[[#This Row],[7:00 a. m.]:[3:00 p. m.]],\"*\")","v":9}]
[null,"Nombre 2",null,"cajero","cajero","cajero","cajero",{"$nulls":5},{"$f":"COUNTIF(Jueves[[#This Row],[7:00 a. m.]:[3:00 p. m.]],\"*\")","v":4}]
[null,"Nombre 3",null,"recepción","recepción","recepción","recepción","recepción","recepción","recepción",null,null,{"$f":"COUNTIF(Jueves[[#This Row],[7:00 a. m.]:[3:00 p. m.]],\"*\")","v":7}]
[null,"Nombre 4",null,"recepción","recepción","recepción","recepción","recepción","recepción","recepción",null,null,{"$f":"COUNTIF(Jueves[[#This Row],[7:00 a. m.]:[3:00 p. m.]],\"*\")","v":7}]
[null,"Nombre 5",{"$nulls":9},"Enfermedad",{"$f":"COUNTIF(Jueves[[#This Row],[7:00 a. m.]:[3:00 p. m.]],\"*\")","v":0}]

{"sheet":"Viernes","index":4,"n_rows":10,"n_cols":13,"rows_kept":10,"merged":[[1,1,1,4],[1,8,1,9],[1,10,1,12],[2,1,2,4],[2,8,2,9],[2,10,2,12]]}
[]
[null,"PROGRAMACIÓN DE TURNOS",{"$nulls":6},"Para la semana de: ",null,"Fecha"]
[null,"Viernes",{"$nulls":6},"Nombre del departamento: ",null,"Nombre"]
[]
[null,"Empleado","7:00 a. m.","8:00 a. m.","9:00 a. m.","10:00 a. m.","11:00 a. m.","12:00 a. m.","1:00 p. m.","2:00 p. m.","3:00 p. m.","¿Enfermedad?","Diferencia"]
[null,"Nombre 1","Administrador","Administrador","Administrador","Administrador","Administrador","Administrador","Administrador","Administrador","Administrador",null,{"$f":"COUNTIF(Viernes[[#This Row],[7:00 a. m.]:[3:00 p. m.]],\"*\")","v":9}]
[null,"Nombre 2",null,"cajero","cajero","cajero","cajero",{"$nulls":5},{"$f":"COUNTIF(Viernes[[#This Row],[7:00 a. m.]:[3:00 p. m.]],\"*\")","v":4}]
[null,"Nombre 3",null,"recepción","recepción","recepción","recepción","recepción","recepción","recepción",null,null,{"$f":"COUNTIF(Viernes[[#This Row],[7:00 a. m.]:[3:00 p. m.]],\"*\")","v":7}]
[null,"Nombre 4",null,"recepción","recepción","recepción","recepción","recepción","recepción","recepción",null,null,{"$f":"COUNTIF(Viernes[[#This Row],[7:00 a. m.]:[3:00 p. m.]],\"*\")","v":7}]
[null,"Nombre 5",{"$nulls":9},"Enfermedad",{"$f":"COUNTIF(Viernes[[#This Row],[7:00 a. m.]:[3:00 p. m.]],\"*\")","v":0}]

{"sheet":"Sábado","index":5,"n_rows":10,"n_cols":13,"rows_kept":10,"merged":[[1,1,1,4],[1,8,1,9],[1,10,1,12],[2,1,2,4],[2,8,2,9],[2,10,2,12]]}
[]
[null,"PROGRAMACIÓN DE TURNOS",{"$nulls":6},"Para la semana de: ",null,"Fecha"]
[null,"Sábado",{"$nulls":6},"Nombre del departamento: ",null,"Nombre"]
[]
[null,"Empleado","7:00 a. m.","8:00 a. m.","9:00 a. m.","10:00 a. m.","11:00 a. m.","12:00 a. m.","1:00 p. m.","2:00 p. m.","3:00 p. m.","¿Enfermedad?","Diferencia"]
[null,"Nombre 1","Administrador","Administrador","Administrador","Administrador","Administrador","Administrador","Administrador","Administrador","Administrador",null,{"$f":"COUNTIF(Sabado[[#This Row],[7:00 a. m.]:[3:00 p. m.]],\"*\")","v":9}]
[null,"Nombre 2",null,"cajero","cajero","cajero","cajero",{"$nulls":5},{"$f":"COUNTIF(Sabado[[#This Row],[7:00 a. m.]:[3:00 p. m.]],\"*\")","v":4}]
[null,"Nombre 3",null,"recepción","recepción","recepción","recepción","recepción","recepción","recepción",null,null,{"$f":"COUNTIF(Sabado[[#This Row],[7:00 a. m.]:[3:00 p. m.]],\"*\")","v":7}]
[null,"Nombre 4",null,"recepción","recepción","recepción","recepción","recepción","recepción","recepción",null,null,{"$f":"COUNTIF(Sabado[[#This Row],[7:00 a. m.]:[3:00 p. m.]],\"*\")","v":7}]
[null,"Nombre 5",{"$nulls":9},"Enfermedad",{"$f":"COUNTIF(Sabado[[#This Row],[7:00 a. m.]:[3:00 p. m.]],\"*\")","v":0}]

{"sheet":"Domingo","index":6,"n_rows":10,"n_cols":13,"rows_kept":10,"merged":[[1,1,1,4],[1,8,1,9],[1,10,1,12],[2,1,2,4],[2,8,2,9],[2,10,2,12]]}
[]
[null,"PROGRAMACIÓN DE TURNOS",{"$nulls":6},"Para la semana de: ",null,"Fecha"]
[null,"Domingo",{"$nulls":6},"Nombre del departamento: ",null,"Nombre"]
[]
[null,"Empleado","7:00 a. m.","8:00 a. m.","9:00 a. m.","10:00 a. m.","11:00 a. m.","12:00 a. m.","1:00 p. m.","2:00 p. m.","3:00 p. m.","¿Enfermedad?","Diferencia"]
[null,"Nombre 1","Administrador","Administrador","Administrador","Administrador","Administrador","Administrador","Administrador","Administrador","Administrador",null,{"$f":"COUNTIF(Domingo[[#This Row],[7:00 a. m.]:[3:00 p. m.]],\"*\")","v":9}]
[null,"Nombre 2",null,"cajero","cajero","cajero","cajero",{"$nulls":5},{"$f":"COUNTIF(Domingo[[#This Row],[7:00 a. m.]:[3:00 p. m.]],\"*\")","v":4}]
[null,"Nombre 3",null,"recepción","recepción","recepción","recepción","recepción","recepción","recepción",null,null,{"$f":"COUNTIF(Domingo[[#This Row],[7:00 a. m.]:[3:00 p. m.]],\"*\")","v":7}]
[null,"Nombre 4",null,"recepción","recepción","recepción","recepción","recepción","recepción","recepción",null,null,{"$f":"COUNTIF(Domingo[[#This Row],[7:00 a. m.]:[3:00 p. m.]],\"*\")","v":7}]
[null,"Nombre 5",{"$nulls":9},"Enfermedad",{"$f":"COUNTIF(Domingo[[#This Row],[7:00 a. m.]:[3:00 p. m.]],\"*\")","v":0}]